fUSD/lending_fUSD_20241107
["ID","MTS","AMOUNT","RATE_DAILY","PERIOD"]
[341595103,1731013846386,-500.0,0.00027397,2]
[341595104,1731013846396,-500.0,0.00027397,2]
[341595105,1731013846406,-506.8,0.00027397,2]
[341595106,1731013846418,-500.0,0.00027397,2]
[341595107,1731013846431,-500.0,0.00027397,2]
[341595108,1731013846442,-500.0,0.00027397,2]
[341595109,1731013846453,-500.0,0.00027397,2]
[341595110,1731013846463,-500.0,0.00027397,2]
[341595111,1731013846473,-571.65,0.00027397,2]
[341595112,1731013846483,-500.0,0.00027397,2]
[341595113,1731013846493,-1267.61,0.00027397,2]
[341595114,1731013846503,-500.0,0.00027397,2]
[341595115,1731013846512,-500.0,0.00027397,2]
[341595116,1731013846522,-500.0,0.00027397,2]
[341595117,1731013846535,-623.41,0.00027397,2]
[341595118,1731013846544,-500.0,0.00027397,2]
[341595119,1731013846554,-500.0,0.00027397,2]
[341595120,1731013846564,-621.64,0.00027397,2]
[341595121,1731013846574,-500.0,0.00027397,2]
[341595122,1731013846583,-3283.82,0.00027397,2]
[341595123,1731013846593,-500.0,0.00027397,2]
[341595124,1731013846603,-500.0,0.00027397,2]
[341595125,1731013846613,-500.0,0.00027397,2]
[341595126,1731013846622,-625.57,0.00027397,2]
[341595127,1731013846632,-1059.44,0.00027397,2]
[341595128,1731013846641,-686.6,0.00027397,2]
[341595129,1731013846650,-500.0,0.00027397,2]
[341595131,1731013846660,-500.0,0.00027397,2]
[341595132,1731013846671,-500.0,0.00027397,2]
[341595133,1731013846681,-500.0,0.00027397,2]
[341595134,1731013846691,-894.44,0.00027397,2]
[341595135,1731013846700,-500.0,0.00027397,2]
[341595136,1731013846710,-607.1,0.00027397,2]
[341595137,1731013846720,-1451.53,0.00027397,2]
[341595138,1731013846730,-500.0,0.00027397,2]
[341595139,1731013846743,-500.0,0.00027397,2]
[341595140,1731013846754,-500.0,0.00027397,2]
[341595141,1731013846764,-500.0,0.00027397,2]
[341595142,1731013846774,-503.82688017,0.00027397,2]
[341595143,1731013846785,-500.0,0.00027397,2]
[341595144,1731013846794,-500.0,0.00027397,2]
[341595145,1731013846804,-500.0,0.00027397,2]
[341595146,1731013846813,-500.0,0.00027397,2]
[341595147,1731013846826,-546.15185997,0.00027397,2]
[341595148,1731013846836,-500.0,0.00027397,2]
[341595149,1731013846845,-950.53,0.00027397,2]
[341595150,1731013846854,-500.0,0.00027397,2]
[341595151,1731013846864,-500.0,0.00027397,2]
[341595152,1731013846874,-500.0,0.00027397,2]
[341595153,1731013846883,-500.0,0.00027397,2]
[341595154,1731013846892,-801.33,0.00027397,2]
[341595155,1731013846901,-1380.34,0.00027397,2]
[341595156,1731013846911,-500.0,0.00027397,2]
[341595157,1731013846921,-500.0,0.00027397,2]
[341595158,1731013846930,-500.0,0.00027397,2]
[341595159,1731013846940,-500.0,0.00027397,2]
[341595160,1731013846949,-500.0,0.00027397,2]
[341595161,1731013846958,-500.0,0.00027397,2]
[341595162,1731013846968,-500.0,0.00027397,2]
[341595163,1731013846977,-500.0,0.00027397,2]
[341595164,1731013846986,-729.32,0.00027397,2]
[341595165,1731013846995,-500.0,0.00027397,2]
[341595166,1731013847004,-500.0,0.00027397,2]
[341595167,1731013847013,-500.0,0.00027397,2]
[341595168,1731013847022,-688.99,0.00027397,2]
[341595169,1731013847032,-500.0,0.00027397,2]
[341595170,1731013847041,-500.0,0.00027397,2]
[341595171,1731013847050,-500.0,0.00027397,2]
[341595172,1731013847059,-500.0,0.00027397,2]
[341595173,1731013847068,-1073.93,0.00027397,2]
[341595174,1731013847078,-500.0,0.00027397,2]
[341595175,1731013847087,-500.0,0.00027397,2]
[341595176,1731013847096,-500.0,0.00027397,2]
[341595177,1731013847105,-500.0,0.00027397,2]
[341595178,1731013847115,-235.31671504,0.00027397,2]
[341595179,1731013847124,-500.0,0.00027397,2]
[341595180,1731013847133,-500.0,0.00027397,2]
[341595181,1731013847142,-903.02,0.00027397,2]
[341595182,1731013847151,-500.0,0.00027397,2]
[341595183,1731013847160,-500.0,0.00027397,2]
[341595184,1731013847169,-618.14018858,0.00027397,2]
[341595185,1731013847179,-500.0,0.00027397,2]
[341595186,1731013847188,-500.0,0.00027397,2]
[341595187,1731013847197,-500.0,0.00027397,2]
[341595188,1731013847206,-500.0,0.00027397,2]
[341595189,1731013847215,-500.0,0.00027397,2]
[341595190,1731013847224,-500.0,0.00027397,2]
[341595191,1731013847233,-501.98,0.00027397,2]
[341595192,1731013847243,-500.0,0.00027397,2]
[341595193,1731013847252,-546.76,0.00027397,2]
[341595194,1731013847260,-500.0,0.00027397,2]
[341595195,1731013847270,-500.0,0.00027397,2]
[341595196,1731013847279,-500.0,0.00027397,2]
[341595197,1731013847288,-193.55107691,0.00027397,2]
[341595198,1731013847297,-500.0,0.00027397,2]
[341595199,1731013847307,-509.21404682,0.00027397,2]
[341595200,1731013847317,-732.52,0.00027397,2]
[341595201,1731013847328,-500.0,0.00027397,2]
[341595202,1731013847338,-500.0,0.00027397,2]
[341595203,1731013847347,-500.0,0.00027397,2]
[341595204,1731013847356,-1128.69,0.00027397,2]
[341595205,1731013847366,-500.0,0.00027397,2]
[341595206,1731013847376,-653.25,0.00027397,2]
[341595207,1731013847385,-500.0,0.00027397,2]
[341595208,1731013847395,-818.77,0.00027397,2]
[341595209,1731013847404,-500.0,0.00027397,2]
[341595210,1731013847420,-500.0,0.00027397,2]
[341595211,1731013847435,-500.0,0.00027397,2]
[341595212,1731013847445,-500.0,0.00027397,2]
[341595213,1731013847454,-500.0,0.00027397,2]
[341595214,1731013847463,-288.5569182,0.00027397,2]
[341595215,1731013847473,-500.0,0.00027397,2]
[341595216,1731013847482,-500.0,0.00027397,2]
[341595217,1731013847491,-500.0,0.00027397,2]
[341595218,1731013847501,-734.99,0.00027397,2]
[341595219,1731013847510,-200.0,0.00027397,2]
[341595220,1731013847519,-500.0,0.00027397,2]
[341595221,1731013847528,-500.0,0.00027397,2]
[341595222,1731013847537,-500.0,0.00027397,2]
[341595223,1731013847547,-500.0,0.00027397,2]
[341595224,1731013847556,-500.0,0.00027397,2]
[341595225,1731013847565,-526.44362698,0.00027397,2]
[341595226,1731013847575,-388.98385734,0.00027397,2]
[341595227,1731013847585,-500.0,0.00027397,2]
[341595228,1731013847594,-624.03,0.00027397,2]
[341595229,1731013847603,-505.13,0.00027397,2]
[341595230,1731013847612,-710.14,0.00027397,2]
[341595231,1731013847621,-500.0,0.00027397,2]
[341595232,1731013847630,-417.27307691,0.00027397,2]
[341595233,1731013847639,-500.0,0.00027397,2]
[341595234,1731013847648,-500.0,0.00027397,2]
[341595235,1731013847657,-500.0,0.00027397,2]
[341595236,1731013847667,-626.03,0.00027397,2]
[341595237,1731013847676,-500.0,0.00027397,2]
[341595238,1731013847686,-500.0,0.00027397,2]
[341595239,1731013847695,-500.0,0.00027397,2]
[341595240,1731013847704,-500.0,0.00027397,2]
[341595241,1731013847713,-500.0,0.00027397,2]
[341595242,1731013847723,-500.0,0.00027397,2]
[341595243,1731013847732,-500.0,0.00027397,2]
[341595244,1731013847744,-500.0,0.00027397,2]
[341595245,1731013847753,-500.0,0.00027397,2]
[341595246,1731013847764,-197.91962495,0.00027397,2]
[341595247,1731013847776,-500.0,0.00027397,2]
[341595248,1731013847786,-500.0,0.00027397,2]
[341595249,1731013847795,-500.0,0.00027397,2]
[341595250,1731013847804,-500.0,0.00027397,2]
[341595251,1731013847814,-500.0,0.00027397,2]
[341595252,1731013847823,-500.0,0.00027397,2]
[341595253,1731013847833,-500.0,0.00027397,2]
[341595254,1731013847843,-500.0,0.00027397,2]
[341595255,1731013847855,-591.2,0.00027397,2]
[341595256,1731013847865,-500.0,0.00027397,2]
[341595257,1731013847875,-500.0,0.00027397,2]
[341595258,1731013847884,-500.0,0.00027397,2]
[341595259,1731013847893,-335.29973532,0.00027397,2]
[341595260,1731013847902,-711.5,0.00027397,2]
[341595261,1731013847911,-284.91,0.00027397,2]
[341595262,1731013847922,-500.0,0.00027397,2]
[341595263,1731013847931,-666.84,0.00027397,2]
[341595264,1731013847940,-500.0,0.00027397,2]
[341595265,1731013847949,-837.39,0.00027397,2]
[341595266,1731013847958,-500.0,0.00027397,2]
[341595267,1731013847967,-865.18,0.00027397,2]
[341595268,1731013847976,-591.94,0.00027397,2]
[341595269,1731013847985,-518.14,0.00027397,2]
[341595270,1731013847995,-500.0,0.00027397,2]
[341595271,1731013848004,-500.0,0.00027397,2]
[341595272,1731013848013,-939.73,0.00027397,2]
[341595273,1731013848022,-670.81,0.00027397,2]
[341595274,1731013848031,-500.0,0.00027397,2]
[341595275,1731013848040,-500.0,0.00027397,2]
[341595276,1731013848049,-500.0,0.00027397,2]
[341595277,1731013848058,-624.47,0.00027397,2]
[341595278,1731013848068,-500.0,0.00027397,2]
[341595279,1731013848078,-539.58,0.00027397,2]
[341595280,1731013848087,-500.0,0.00027397,2]
[341595281,1731013848101,-500.0,0.00027397,2]
[341595282,1731013848114,-517.81,0.00027397,2]
[341595283,1731013848125,-1787.32,0.00027397,2]
[341595284,1731013848134,-500.0,0.00027397,2]
[341595285,1731013848144,-500.0,0.00027397,2]
[341595286,1731013848154,-773.27,0.00027397,2]
[341595287,1731013848165,-450.31137966,0.00027397,2]
[341595288,1731013848174,-500.0,0.00027397,2]
[341595289,1731013848183,-500.0,0.00027397,2]
[341595290,1731013848193,-500.0,0.00027397,2]
[341595291,1731013848203,-500.0,0.00027397,2]
[341595292,1731013848212,-595.77,0.00027397,2]
[341595293,1731013848221,-500.0,0.00027397,2]
[341595294,1731013848231,-597.38,0.00027397,2]
[341595295,1731013848240,-500.0,0.00027397,2]
[341595296,1731013848250,-952.66,0.00027397,2]
[341595297,1731013848259,-500.0,0.00027397,2]
[341595298,1731013848268,-500.0,0.00027397,2]
[341595299,1731013848278,-500.0,0.00027397,2]
[341595300,1731013848288,-500.0,0.00027397,2]
[341595301,1731013848297,-500.0,0.00027397,2]
[341595302,1731013848307,-500.0,0.00027397,2]
[341595303,1731013848316,-500.0,0.00027397,2]
[341595304,1731013848328,-500.0,0.00027397,2]
[341595305,1731013848337,-500.0,0.00027397,2]
[341595306,1731013848347,-500.0,0.00027397,2]
[341595307,1731013848357,-600.83,0.00027397,2]
[341595308,1731013848367,-500.0,0.00027397,2]
[341595309,1731013848376,-500.0,0.00027397,2]
[341595310,1731013848386,-500.0,0.00027397,2]
[341595311,1731013848396,-500.0,0.00027397,2]
[341595312,1731013848406,-799.34,0.00027397,2]
[341595313,1731013848415,-506.66296387,0.00027397,2]
[341595314,1731013848425,-500.0,0.00027397,2]
[341595315,1731013848435,-500.0,0.00027397,2]
[341595316,1731013848445,-500.0,0.00027397,2]
[341595317,1731013848454,-500.0,0.00027397,2]
[341595318,1731013848464,-500.0,0.00027397,2]
[341595319,1731013848473,-500.0,0.00027397,2]
[341595320,1731013848482,-500.0,0.00027397,2]
[341595321,1731013848492,-500.0,0.00027397,2]
[341595322,1731013848502,-500.0,0.00027397,2]
[341595323,1731013848511,-500.0,0.00027397,2]
[341595324,1731013848521,-500.0,0.00027397,2]
[341595325,1731013848531,-1628.17,0.00027397,2]
[341595326,1731013848541,-706.31,0.00027397,2]
[341595327,1731013848552,-500.0,0.00027397,2]
[341595328,1731013848562,-1441.68,0.00027397,2]
[341595329,1731013848572,-500.0,0.00027397,2]
[341595330,1731013848582,-500.0,0.00027397,2]
[341595331,1731013848591,-602.72,0.00027397,2]
[341595332,1731013848600,-500.0,0.00027397,2]
[341595333,1731013848609,-515.02188149,0.00027397,2]
[341595334,1731013848619,-500.0,0.00027397,2]
[341595335,1731013848628,-518.48,0.00027397,2]
[341595336,1731013848637,-656.82,0.00027397,2]
[341595337,1731013848646,-500.0,0.00027397,2]
[341595338,1731013848655,-679.79,0.00027397,2]
[341595339,1731013848665,-235.41917052,0.00027397,2]
[341595340,1731013848675,-500.0,0.00027397,2]
[341595341,1731013848684,-604.76,0.00027397,2]
[341595342,1731013848694,-500.0,0.00027397,2]
[341595343,1731013848704,-500.0,0.00027397,2]
[341595344,1731013848713,-500.0,0.00027397,2]
[341595345,1731013848723,-500.0,0.00027397,2]
[341595346,1731013848735,-500.0,0.00027397,2]
[341595347,1731013848746,-500.0,0.00027397,2]
[341595348,1731013848756,-613.87,0.00027397,2]
[341595349,1731013848766,-500.0,0.00027397,2]
[341595350,1731013848776,-500.0,0.00027397,2]
[341595351,1731013848786,-500.0,0.00027397,2]
[341595352,1731013848795,-500.0,0.00027397,2]
[341595353,1731013848805,-500.0,0.00027397,2]
[341595354,1731013848815,-774.27,0.00027397,2]
[341595355,1731013848827,-500.0,0.00027397,2]
[341595356,1731013848836,-500.0,0.00027397,2]
[341595357,1731013848845,-500.0,0.00027397,2]
[341595358,1731013848855,-586.15,0.00027397,2]
[341595359,1731013848864,-500.0,0.00027397,2]
[341595360,1731013848873,-500.0,0.00027397,2]
[341595361,1731013848882,-500.0,0.00027397,2]
[341595362,1731013848892,-500.0,0.00027397,2]
[341595363,1731013848901,-522.92548222,0.00027397,2]
[341595364,1731013848910,-730.75,0.00027397,2]
[341595365,1731013848920,-500.0,0.00027397,2]
[341595366,1731013848929,-500.0,0.00027397,2]
[341595367,1731013848939,-500.0,0.00027397,2]
[341595368,1731013848951,-758.11,0.00027397,2]
[341595369,1731013848968,-500.0,0.00027397,2]
[341595370,1731013848978,-500.0,0.00027397,2]
[341595371,1731013848987,-500.0,0.00027397,2]
[341595372,1731013848996,-500.0,0.00027397,2]
[341595373,1731013849006,-500.0,0.00027397,2]
[341595374,1731013849015,-500.0,0.00027397,2]
[341595375,1731013849024,-500.0,0.00027397,2]
[341595376,1731013849033,-500.0,0.00027397,2]
[341595377,1731013849043,-547.07,0.00027397,2]
[341595378,1731013849052,-500.0,0.00027397,2]
[341595379,1731013849061,-708.86,0.00027397,2]
[341595380,1731013849070,-373.59990335,0.00027397,2]
[341595381,1731013849113,-126.40009665,0.00027397,2]
[341595382,1731013849122,-500.0,0.00027397,2]
[341595383,1731013849132,-554.62,0.00027397,2]
[341595384,1731013849141,-683.94,0.00027397,2]
[341595385,1731013849150,-1265.99,0.00027397,2]
[341595386,1731013849161,-500.0,0.00027397,2]
[341595387,1731013849172,-500.0,0.00027397,2]
[341595388,1731013849182,-698.25,0.00027397,2]
[341595389,1731013849191,-500.0,0.00027397,2]
[341595390,1731013849201,-500.0,0.00027397,2]
[341595391,1731013849210,-500.0,0.00027397,2]
[341595392,1731013849219,-500.0,0.00027397,2]
[341595393,1731013849229,-500.0,0.00027397,2]
[341595394,1731013849238,-538.93,0.00027397,2]
[341595395,1731013849247,-500.0,0.00027397,2]
[341595396,1731013849257,-500.0,0.00027397,2]
[341595397,1731013849267,-2000.0,0.00027397,2]
[341595398,1731013849276,-1247.7,0.00027397,2]
[341595399,1731013849286,-500.0,0.00027397,2]
[341595400,1731013849295,-357.92335617,0.00027397,2]
[341595401,1731013849304,-500.0,0.00027397,2]
[341595402,1731013849314,-500.0,0.00027397,2]
[341595403,1731013849323,-664.06,0.00027397,2]
[341595404,1731013849332,-500.0,0.00027397,2]
[341595405,1731013849342,-1359.63,0.00027397,2]
[341595406,1731013849352,-557.32,0.00027397,2]
[341595407,1731013849362,-500.0,0.00027397,2]
[341595408,1731013849371,-4011.45,0.00027397,2]
[341595409,1731013849381,-8051.87,0.00027397,2]
[341595410,1731013849392,-500.0,0.00027397,2]
[341595411,1731013849401,-500.0,0.00027397,2]
[341595412,1731013849411,-500.0,0.00027397,2]
[341595413,1731013849421,-1415.41,0.00027397,2]
[341595414,1731013849431,-500.0,0.00027397,2]
[341595415,1731013849445,-500.0,0.00027397,2]
[341595416,1731013849454,-500.0,0.00027397,2]
[341595417,1731013849463,-500.0,0.00027397,2]
[341595418,1731013849473,-771.96,0.00027397,2]
[341595419,1731013849483,-510.92,0.00027397,2]
[341595420,1731013849492,-892.89,0.00027397,2]
[341595421,1731013849501,-500.0,0.00027397,2]
[341595422,1731013849512,-500.0,0.00027397,2]
[341595423,1731013849521,-512.35,0.00027397,2]
[341595424,1731013849531,-500.0,0.00027397,2]
[341595425,1731013849541,-610.65,0.00027397,2]
[341595426,1731013849550,-500.0,0.00027397,2]
[341595427,1731013849559,-500.0,0.00027397,2]
[341595428,1731013849568,-1905.69,0.00027397,2]
[341595429,1731013849578,-500.0,0.00027397,2]
[341595430,1731013849587,-500.0,0.00027397,2]
[341595431,1731013849597,-924.41,0.00027397,2]
[341595432,1731013849606,-500.0,0.00027397,2]
[341595433,1731013849616,-500.0,0.00027397,2]
[341595434,1731013849625,-1231.67,0.00027397,2]
[341595435,1731013849634,-806.7,0.00027397,2]
[341595436,1731013849644,-500.0,0.00027397,2]
[341595437,1731013849653,-300.0,0.00027397,2]
[341595438,1731013849662,-500.0,0.00027397,2]
[341595439,1731013849673,-546.06,0.00027397,2]
[341595440,1731013849683,-579.81,0.00027397,2]
[341595441,1731013849696,-500.0,0.00027397,2]
[341595442,1731013849705,-500.0,0.00027397,2]
[341595443,1731013849715,-500.0,0.00027397,2]
[341595444,1731013849724,-500.0,0.00027397,2]
[341595445,1731013849735,-500.0,0.00027397,2]
[341595446,1731013849745,-677.4,0.00027397,2]
[341595447,1731013849754,-2585.86,0.00027397,2]
[341595448,1731013849764,-500.0,0.00027397,2]
[341595449,1731013849773,-500.0,0.00027397,2]
[341595450,1731013849784,-500.0,0.00027397,2]
[341595451,1731013849793,-500.0,0.00027397,2]
[341595452,1731013849802,-1251.49,0.00027397,2]
[341595453,1731013849813,-1266.11,0.00027397,2]
[341595454,1731013849822,-500.0,0.00027397,2]
[341595455,1731013849832,-447.04699357,0.00027397,2]
[341595456,1731013849841,-500.0,0.00027397,2]
[341595457,1731013849850,-500.0,0.00027397,2]
[341595458,1731013849860,-500.0,0.00027397,2]
[341595459,1731013849869,-654.29,0.00027397,2]
[341595460,1731013849878,-500.0,0.00027397,2]
[341595461,1731013849888,-500.0,0.00027397,2]
[341595462,1731013849897,-500.0,0.00027397,2]
[341595463,1731013849907,-500.0,0.00027397,2]
[341595464,1731013849916,-500.0,0.00027397,2]
[341595465,1731013850141,-676.72,0.00027397,2]
[341595466,1731013850150,-610.5,0.00027397,2]
[341595467,1731013850160,-500.0,0.00027397,2]
[341595468,1731013850171,-500.0,0.00027397,2]
[341595469,1731013850181,-696.32,0.00027397,2]
[341595470,1731013850190,-500.0,0.00027397,2]
[341595471,1731013850199,-500.0,0.00027397,2]
[341595472,1731013850209,-500.0,0.00027397,2]
[341595473,1731013850226,-1274.42,0.00027397,2]
[341595474,1731013850240,-1189.88,0.00027397,2]
[341595475,1731013850252,-223.51882546,0.00027397,2]
[341595476,1731013850262,-529.47207395,0.00027397,2]
[341595477,1731013850272,-500.0,0.00027397,2]
[341595478,1731013850283,-500.0,0.00027397,2]
[341595479,1731013850293,-564.4,0.00027397,2]
[341595480,1731013850303,-1252.37,0.00027397,2]
[341595481,1731013850313,-7330.64853496,0.00027397,2]
[341595482,1731013850333,-1308.39146504,0.00027397,2]
[341595483,1731013850343,-500.0,0.00027397,2]
[341595484,1731013850353,-500.0,0.00027397,2]
[341595485,1731013850363,-500.0,0.00027397,2]
[341595486,1731013850374,-500.0,0.00027397,2]
[341595487,1731013850384,-500.0,0.00027397,2]
[341595488,1731013850395,-500.0,0.00027397,2]
[341595489,1731013850405,-500.0,0.00027397,2]
[341595490,1731013850415,-500.0,0.00027397,2]
[341595491,1731013850426,-500.0,0.00027397,2]
[341595492,1731013850436,-1104.79,0.00027397,2]
[341595493,1731013850446,-924.61,0.00027397,2]
[341595494,1731013850456,-500.0,0.00027397,2]
[341595495,1731013850466,-500.0,0.00027397,2]
[341595496,1731013850475,-500.0,0.00027397,2]
[341595497,1731013850485,-500.0,0.00027397,2]
[341595498,1731013850495,-500.0,0.00027397,2]
[341595499,1731013850504,-836.6,0.00027397,2]
[341595500,1731013850514,-500.0,0.00027397,2]
[341595501,1731013850524,-1714.59,0.00027397,2]
[341595502,1731013850534,-234.42517493,0.00027397,2]
[341595503,1731013851224,-265.57482507,0.00027397,2]
[341595504,1731013851234,-165.4071614,0.00027397,2]
[341595505,1731013851246,-385.5628386,0.00027397,2]
[341595506,1731013851255,-266.65484053,0.00027397,2]
[341595507,1731013851304,-233.34515947,0.00027397,2]
[341595508,1731013851315,-500.0,0.00027397,2]
[341595509,1731013851327,-500.0,0.00027397,2]
[341595510,1731013851337,-309.42915377,0.00027397,2]
[341595511,1731013851349,-500.0,0.00027397,2]
[341595512,1731013851360,-500.0,0.00027397,2]
[341595513,1731013851371,-500.0,0.00027397,2]
[341595514,1731013851382,-500.0,0.00027397,2]
[341595515,1731013851391,-853.41,0.00027397,2]
[341595516,1731013851401,-529.08,0.00027397,2]
[341595517,1731013851411,-500.0,0.00027397,2]
[341595518,1731013851422,-500.0,0.00027397,2]
[341595519,1731013851432,-784.42,0.00027397,2]
[341595520,1731013851441,-500.0,0.00027397,2]
[341595521,1731013851451,-500.0,0.00027397,2]
[341595522,1731013851461,-500.0,0.00027397,2]
[341595523,1731013851470,-650.7,0.00027397,2]
[341595524,1731013851480,-500.0,0.00027397,2]
[341595525,1731013851489,-841.18,0.00027397,2]
[341595526,1731013851498,-500.0,0.00027397,2]
[341595527,1731013851508,-500.0,0.00027397,2]
[341595528,1731013851518,-500.0,0.00027397,2]
[341595529,1731013851527,-538.04,0.00027397,2]
[341595530,1731013851537,-500.0,0.00027397,2]
[341595531,1731013851546,-512.17,0.00027397,2]
[341595532,1731013851556,-625.21,0.00027397,2]
[341595533,1731013851565,-370.33899436,0.00027397,2]
[341595534,1731013851574,-500.0,0.00027397,2]
[341595535,1731013851584,-618.06,0.00027397,2]
[341595536,1731013851594,-500.0,0.00027397,2]
[341595537,1731013851603,-500.0,0.00027397,2]
[341595538,1731013851612,-500.0,0.00027397,2]
[341595539,1731013851622,-500.0,0.00027397,2]
[341595540,1731013851631,-500.0,0.00027397,2]
[341595541,1731013851640,-517.33,0.00027397,2]
[341595542,1731013851650,-1959.86,0.00027397,2]
[341595543,1731013851659,-536.98,0.00027397,2]
[341595544,1731013851669,-500.0,0.00027397,2]
[341595545,1731013851678,-707.16,0.00027397,2]
[341595546,1731013851687,-612.2,0.00027397,2]
[341595547,1731013851697,-500.0,0.00027397,2]
[341595548,1731013851706,-500.0,0.00027397,2]
[341595549,1731013851716,-530.67,0.00027397,2]
[341595550,1731013851726,-500.0,0.00027397,2]
[341595551,1731013851736,-786.55,0.00027397,2]
[341595552,1731013851746,-500.0,0.00027397,2]
[341595553,1731013851755,-574.58,0.00027397,2]
[341595554,1731013851764,-500.0,0.00027397,2]
[341595555,1731013851773,-933.29,0.00027397,2]
[341595556,1731013851784,-500.0,0.00027397,2]
[341595557,1731013851794,-500.0,0.00027397,2]
[341595558,1731013851803,-500.0,0.00027397,2]
[341595559,1731013851815,-500.0,0.00027397,2]
[341595560,1731013851824,-346.44656923,0.00027397,2]
[341595561,1731013851834,-599.65,0.00027397,2]
[341595562,1731013851843,-500.0,0.00027397,2]
[341595563,1731013851852,-694.06,0.00027397,2]
[341595564,1731013851861,-500.0,0.00027397,2]
[341595565,1731013851871,-362.69,0.00027397,2]
[341595566,1731013851880,-500.0,0.00027397,2]
[341595567,1731013851889,-500.0,0.00027397,2]
[341595568,1731013851898,-671.26,0.00027397,2]
[341595569,1731013851908,-500.0,0.00027397,2]
[341595570,1731013851917,-500.0,0.00027397,2]
[341595571,1731013851929,-500.0,0.00027397,2]
[341595572,1731013851939,-500.0,0.00027397,2]
[341595573,1731013851948,-500.0,0.00027397,2]
[341595574,1731013851958,-902.86,0.00027397,2]
[341595575,1731013851967,-1223.37,0.00027397,2]
[341595576,1731013851977,-1153.69,0.00027397,2]
[341595577,1731013851986,-500.0,0.00027397,2]
[341595578,1731013851996,-500.0,0.00027397,2]
[341595579,1731013852005,-500.0,0.00027397,2]
[341595580,1731013852015,-500.0,0.00027397,2]
[341595581,1731013852025,-500.0,0.00027397,2]
[341595582,1731013852035,-500.0,0.00027397,2]
[341595583,1731013852044,-1570.97,0.00027397,2]
[341595584,1731013852054,-500.0,0.00027397,2]
[341595585,1731013852063,-500.0,0.00027397,2]
[341595586,1731013852072,-625.32,0.00027397,2]
[341595587,1731013852082,-2342.06,0.00027397,2]
[341595588,1731013852092,-500.0,0.00027397,2]
[341595589,1731013852101,-855.99,0.00027397,2]
[341595590,1731013852111,-1334.09,0.00027397,2]
[341595591,1731013852120,-500.0,0.00027397,2]
[341595592,1731013852130,-500.0,0.00027397,2]
[341595593,1731013852139,-500.0,0.00027397,2]
[341595594,1731013852148,-872.34,0.00027397,2]
[341595595,1731013852158,-518.03,0.00027397,2]
[341595596,1731013852167,-1771.71,0.00027397,2]
[341595597,1731013852180,-500.0,0.00027397,2]
[341595598,1731013852190,-500.0,0.00027397,2]
[341595599,1731013852200,-500.0,0.00027397,2]
[341595600,1731013852210,-10.46012294,0.00027397,2]
[341595601,1731013861121,150.0,0.00018123,2]
[341595606,1731014294668,238.05,0.00015342,2]
[341595607,1731014333567,157.49,0.00020298,2]